[Event "FIDE WY-U16 Olympiad 2022"]
[Site "Nakhchivan"]
[Date "2022.10.02"]
[Round "1.14"]
[White "Karam, Youssef Mark"]
[Black "Paredes Guzman, Francisco Javier"]
[Result "0-1"]
[ECO "A04"]
[WhiteElo "1488"]
[BlackElo "2023"]
[Annotator "TA"]
[PlyCount "132"]
[EventDate "2022.10.02"]
[EventType "team-tourn"]
[EventCountry "AZE"]
[SourceTitle "playchess.com"]
[Source "ChessBase"]
[SourceQuality "1"]
[WhiteTeam "Lebanon"]
[BlackTeam "Mexico"]
[WhiteTeamCountry "LBN"]
[BlackTeamCountry "MEX"]
[TimeControl "40/5400+30:1800+30"]

{[%evp 10,132,20,-7,10,-27,-23,-29,-15,-15,-18,-26,-26,-35,-12,-12,0,0,10,0,3,6,29,29,56,53,57,36,575,46,42,39,50,59,47,37,41,34,39,41,25,29,22,-38,-46,-43,-43,-43,-48,-53,-31,-53,-45,-37,-33,-94,-85,-92,-35,-37,-25,-33,-35,-40,-31,-47,-50,-66,-72,-67,-67,-96,-8,-12,100,93,69,41,22,27,59,0,0,-20,0,-12,110,-22,-22,-32,18,-60,-60,-60,-19,-41,-42,-46,0,-24,0,-11,0,-6,-13,-115,-110,-164,-147,-133,-76,-366,-371,-321,-352,-465,-467,-921,-456,-2285,-1472,-1458,-1441,-29996,-29997]} 1. Nf3 {[%emt 0:00:05]} d6 {[%emt 0:00:54]} 2. d4 {[%emt 0:00:21]} g6 {[%emt 0:00:10]} 3. b3 {[%emt 0:00:28]} Bg7 {[%emt 0:01:16]} 4. Bb2 {[%emt 0:00:17]} Nf6 {[%emt 0:02:12]} 5. e3 {[%emt 0:00:22]} O-O {[%emt 0:04:12]} 6. Bd3 {[%emt 0:04:58]} Nc6 {[%emt 0:07:40][%cal Oe7e5] A48: 1 d4 Nf6 2 Nf3 g6: Torre, London and Colle Systems.} 7. a3 {[%emt 0:04:32]} e5 {[%emt 0:11:38]} 8. Nbd2 {[%emt 0:05:45] Prevents e4.} exd4 {[%emt 0:08:30] Black has an edge.} 9. Nxd4 {[%emt 0:01:11]} Ne5 {[%emt 0:00:04]} 10. Be2 {[%emt 0:15:51] [#]} Qe7 $146 {[%emt 0:13:41]} ({Predecessor:} 10... Re8 11. O-O a6 12. Rb1 Bd7 13. Nc4 Nxc4 14. Bxc4 b5 15. Be2 c5 16. Nf3 Bc6 {0-1 (75) Tribuiani,R (2099)-Sibilio,M (2361) Rome 2004}) 11. O-O {[%emt 0:03:22]} h5 {[%emt 0:00:16]} 12. h3 {[%emt 0:02:09]} Nh7 {[%emt 0:03:59]} 13. e4 {[%emt 0:06:54]} a6 {[%emt 0:08:28]} 14. f4 {[%emt 0:03:49][%cal Bf2f4,Bf4f5][%mdl 32]} Nd7 {[%emt 0:05:11]} 15. Rb1 $36 {[%emt 0:15:34][%mdl 2048] White is pushing.} Nc5 {[%emt 0:01:00]} (15... c5 $5 16. N4f3 $8 Bxb2 17. Rxb2 Qf6 $11) 16. Bc4 {[%emt 0:05:38]} Nf6 {[%emt 0:04:13][%cal Bh7f6,Bf6d7,Bd7e5][%mdl 32]} 17. Re1 $1 {[%emt 0:07:41]} Nfd7 {[%emt 0:01:38]} 18. f5 {[%emt 0:03:36]} Kh7 {[%emt 0:01:13][%mdl 8192]} (18... Ne5 $14) 19. b4 $2 {[%emt 0:02:05]} (19. fxg6+ $1 $18 fxg6 20. Nf5 $1 {[%mdl 512]} Rxf5 21. exf5) 19... Na4 $14 {[%emt 0:00:53]} 20. Ba1 {[%emt 0:00:14]} Ne5 {[%emt 0:01:10]} 21. Bb3 {[%emt 0:01:14]} Nb6 {[%emt 0:00:33]} 22. Qe2 {[%emt 0:02:30]} Bd7 {[%emt 0:03:25]} 23. N4f3 {[%emt 0:00:44]} Rae8 {[%emt 0:03:29]} 24. Nxe5 {[%emt 0:01:49]} Bxe5 {[%emt 0:00:05]} 25. Qf3 {[%emt 0:02:24]} Qf6 {[%emt 0:03:03]} 26. Rf1 {[%emt 0:00:51]} (26. Bxe5 $11 Qxe5 27. Rbd1) 26... Bxa1 $15 {[%emt 0:01:27]} 27. Rxa1 {[%emt 0:00:01] fxg6+ is the strong threat.} Qd4+ {[%emt 0:00:28]} 28. Kh1 {[%emt 0:01:08][%cal Ob3f7]} Qxd2 {[%emt 0:03:21]} 29. Bxf7 $1 {[%emt 0:00:09]} Qg5 {[%emt 0:00:09] Strongly threatening ...gxf5.} 30. Bxg6+ {[%emt 0:00:48]} Kh6 {[%emt 0:00:12][%cal Bh7h6,Bh6g5,Bg5f5][%mdl 32]} 31. Bxe8 {[%emt 0:00:24]} Bxe8 {[%emt 0:00:29]} 32. Qf4 {[%emt 0:00:29]} (32. Rae1 $15) 32... Nd7 {[%emt 0:00:44]} 33. Kh2 {[%emt 0:01:30]} Nf6 {[%emt 0:03:07]} (33... Qxf4+ $17 34. Rxf4 Kg5) 34. Rae1 {[%emt 0:00:49]} Bb5 {[%emt 0:00:18]} 35. Qxg5+ $1 {[%emt 0:00:44]} Kxg5 {[%emt 0:00:05]} 36. Rf3 {[%emt 0:00:16]} Bc6 {[%emt 0:01:04][%mdl 1024] Black has compensation.} 37. Rfe3 {[%emt 0:01:12]} Re8 {[%emt 0:00:17][%cal Re8e4]} 38. e5 {[%emt 0:01:25]} Nd5 {[%emt 0:02:38]} 39. h4+ {[%emt 0:01:57]} Kxf5 {[%emt 0:01:03] Black is more active.} 40. Rf3+ {[%emt 0:00:06]} Kg6 {[%emt 0:02:41]} (40... Nf4 $17 41. Rf2 Bxg2) 41. c4 $1 $11 {[%emt 0:30:06]} Ne7 {[%emt 0:31:14] [#]} (41... Nb6 $11 42. Rg3+ Kh7) 42. Rg3+ $1 $16 {[%emt 0:00:52]} Kf7 {[%emt 0:01:01]} 43. exd6 {[%emt 0:00:17]} cxd6 {[%emt 0:00:07]} 44. Rg5 {[%emt 0:00:33]} Rh8 {[%emt 0:00:49]} 45. Rd1 {[%emt 0:01:03]} (45. b5 $1 $14 axb5 46. cxb5) 45... Rh6 $11 {[%emt 0:01:02]} 46. Kg3 {[%emt 0:00:22]} Ke8 {[%emt 0:01:38]} 47. Re1 {[%emt 0:01:41] aiming for Rg7.} Rh7 {[%emt 0:00:00] Inhibits Rg7.} (47... Kd8 $11) 48. Re6 {[%emt 0:00:00]} ({White has to play} 48. b5 $16 {Black must now prevent c5.} axb5 49. cxb5) 48... Kd7 {[%emt 0:00:00]} 49. Rf6 {[%emt 0:00:00]} b5 {[%emt 0:00:00]} ({Better is} 49... Kc7 $15) 50. Rf4 {[%emt 0:00:00]} (50. c5 $11) 50... bxc4 $15 {[%emt 0:00:00]} 51. Rxc4 {[%emt 0:00:00]} Bd5 {[%emt 0:00:00]} 52. Rd4 {[%emt 0:00:00]} Be6 {[%emt 0:00:00] Hoping for ...Nf5+.} 53. Rf4 {[%emt 0:00:00] Inhibits Nf5+.} Bg4 {[%emt 0:00:00]} (53... Nc6 $15 {is more appropriate.}) 54. Rf6 {[%emt 0:00:00]} Rh8 {[%emt 0:00:00]} 55. Ra5 {[%emt 0:00:00]} Be2 {[%emt 0:00:00]} 56. Kf2 {[%emt 0:00:00]} Bc4 {[%emt 0:00:00]} 57. Rf4 {[%emt 0:00:00]} (57. Rg5 $11) 57... d5 $17 {[%emt 0:00:00]} 58. g3 {[%emt 0:00:00]} (58. Rc5 $17) 58... Nc6 {[%emt 0:00:00]} 59. Rc5 {[%emt 0:00:00] [#]} Ne5 {[%emt 0:00:00] Prevents g4.} ({Black should play} 59... Re8 $1 60. Rf7+ Ke6) 60. Rd4 $2 {[%emt 0:00:00][%mdl 8192]} (60. Rfxc4 $17 Nxc4 61. Rxd5+ Ke6 62. Rc5 Nxa3 63. Rc6+ Kd5 64. Rxa6) 60... Kd6 $19 {[%emt 0:00:00]} 61. Kg2 {[%emt 0:00:00]} Re8 {[%emt 0:00:00]} 62. Rf4 {[%emt 0:00:00]} Ng4 {[%emt 0:00:00] Against Rf6+} 63. Kh3 {[%emt 0:03:39]} (63. Rf3 $142 Re2+ 64. Kh1) 63... Re1 {[%emt 0:00:00]} (63... Re2 $142 {[%csl Gg4][%cal Re2h2]} 64. Rxg4 hxg4+ 65. Kxg4 Rc2) 64. Rf5 {[%emt 0:01:28]} (64. Kg2 $142 Re2+ 65. Kg1) 64... Bf1+ {[%emt 0:00:00]} 65. Rxf1 {[%emt 0:00:05]} Rxf1 {[%emt 0:00:00]} 66. Ra5 {[%emt 0:00:23]} Rf2 {[%emt 0:00:00] Quite a comeback for Black.  Weighted Error Value: White=0.38/Black=0.28 (precise)} 0-1

[Event "FIDE WY-U16 Olympiad 2022"]
[Site "Nakhchivan"]
[Date "2022.10.02"]
[Round "1.15"]
[White "Zacarias Rodriguez, Santiago"]
[Black "Fawaz, Mohamad"]
[Result "1-0"]
[ECO "B12"]
[WhiteElo "2091"]
[BlackElo "1394"]
[Annotator "TA"]
[PlyCount "107"]
[EventDate "2022.10.02"]
[EventType "team-tourn"]
[EventCountry "AZE"]
[SourceTitle "playchess.com"]
[Source "ChessBase"]
[SourceQuality "1"]
[WhiteTeam "Mexico"]
[BlackTeam "Lebanon"]
[WhiteTeamCountry "MEX"]
[BlackTeamCountry "LBN"]
[TimeControl "40/5400+30:1800+30"]

{[%evp 11,107,2,8,7,32,12,31,15,41,46,37,33,35,25,24,12,74,86,126,97,100,69,76,72,152,25,32,29,42,16,129,127,110,132,128,127,126,121,112,124,130,106,156,119,159,153,179,171,382,417,448,440,401,398,365,226,520,530,648,630,595,617,499,535,475,514,860,828,1498,1147,4962,2571,1321,1009,29971,29973,29972,29973,29973,29974,29975,29976,29973,29974,29981,29982,29983,29978,29978,29979,29979,29980,29962,29966,29982,29983,29981,29982]} 1. e4 {[%emt 0:00:09]} c6 {[%emt 0:00:22]} 2. d4 {[%emt 0:00:29]} d5 {[%emt 0:00:05]} 3. e5 {[%emt 0:00:05]} Bf5 {[%emt 0:00:04]} 4. h4 {[%emt 0:00:15]} h5 {[%emt 0:00:05]} 5. Bd3 {[%emt 0:00:13]} Bxd3 {[%emt 0:00:27]} 6. Qxd3 {[%emt 0:00:08]} e6 {[%emt 0:00:13]} 7. Bg5 {[%emt 0:00:37] B12: Caro-Kann: Advance Variation.} Ne7 {[%emt 0:00:40][%cal Oc6c5]} 8. Nd2 {[%emt 0:11:24][%cal Bb1d2,Bd2c4,Bc4e3][%mdl 32]} Qc7 {[%emt 0:05:05]} 9. Ne2 {[%emt 0:05:20] White is slightly better.} Nd7 {[%emt 0:03:59]} 10. c4 {[%emt 0:08:10]} dxc4 {[%emt 0:05:04]} 11. Nxc4 {[%emt 0:00:36] [#] Nd6+ is the strong threat.} Nf5 $146 {[%emt 0:00:11] Inhibits Nd6+.} ({Predecessor:} 11... Nd5 12. a3 N7b6 13. Nxb6 Qxb6 14. O-O Be7 15. Bxe7 Nxe7 16. Qc3 O-O-O 17. Qc5 Nf5 18. Qxb6 axb6 {0-1 (33) Francioni,M (1599)-Cassi,E (1802) Porto San Giorgio 2020}) 12. O-O {[%emt 0:02:31]} Nb6 {[%emt 0:07:21]} 13. Ne3 {[%emt 0:04:07]} Ne7 {[%emt 0:02:35]} (13... g6 $1 $11) 14. Nc3 $16 {[%emt 0:17:26] White has more active pieces. The black rooks are badly placed.} O-O-O {[%emt 0:05:06]} 15. Rfd1 {[%emt 0:02:26]} Rd7 {[%emt 0:02:18] [#]} 16. Nb5 $1 {[%emt 0:09:48]} cxb5 {[%emt 0:07:14]} (16... Qb8 17. Nd6+) 17. Bxe7 {[%emt 0:00:07]} Kb8 {[%emt 0:00:06]} (17... Rxe7 $2 18. Rac1 g6 19. d5 exd5 20. Qxb5 $18) (17... Bxe7 $142 18. Rac1 Nc4) 18. Bxf8 {[%emt 0:10:50]} (18. Rac1 $16 Qxc1 19. Rxc1 Bxe7 20. Qe4 (20. Qxb5 Rxd4 21. Rd1 Rxh4 $16)) 18... Rxf8 $11 {[%emt 0:00:09]} 19. Qxb5 {[%emt 0:00:06]} Qd8 {[%emt 0:00:52]} 20. a4 {[%emt 0:02:17][%cal Ba2a4,Ba4a5][%mdl 32]} Rxd4 {[%emt 0:04:54] White stays focused until the end.} (20... a6 $11 {keeps the balance.} 21. Qb4 Nd5 22. Nxd5 Rxd5) 21. a5 $16 {[%emt 0:03:12]} Nc8 {[%emt 0:00:22]} 22. Rxd4 {[%emt 0:05:29]} ({Don't do} 22. a6 Qb6 23. Qe2 Rxd1+ 24. Qxd1 (24. Nxd1 g6 $14) 24... bxa6 $14) 22... Qxd4 {[%emt 0:00:26]} 23. Rd1 $1 $36 {[%emt 0:00:01][%mdl 2048] Keeping Black busy.} a6 {[%emt 0:03:40] Hoping for ...Qxd1+.} 24. Qxb7+ {[%emt 0:00:56]} ({Of course not} 24. Rxd4 $6 axb5 25. g4 hxg4 $11) 24... Kxb7 {[%emt 0:00:03]} 25. Rxd4 {[%emt 0:00:04][%mdl 4096] Endgame KRN-KRN} Kc6 {[%emt 0:00:25]} 26. b4 {[%emt 0:04:49]} Re8 {[%emt 0:05:37]} (26... Kb5 $142) 27. Kf1 {[%emt 0:04:46]} Re7 {[%emt 0:05:09]} 28. Ke2 {[%emt 0:00:29]} Kb5 {[%emt 0:02:10] [#]} 29. Nd1 $1 {[%emt 0:01:46]} Rc7 {[%emt 0:00:33] Inhibits Nc3+.} (29... Ka4 30. Nb2+ Kb3) 30. Kd3 $18 {[%emt 0:00:32]} Kc6 {[%emt 0:10:24]} 31. Rc4+ {[%emt 0:00:35]} Kb7 {[%emt 0:00:27]} 32. Rxc7+ {[%emt 0:00:06]} Kxc7 {[%emt 0:00:02] KN-KN} 33. Nc3 {[%emt 0:02:46]} Kc6 $2 {[%emt 0:04:00]} (33... Ne7 34. Ke4 Nf5) 34. Kc4 {[%emt 0:02:06]} Ne7 {[%emt 0:02:02]} 35. b5+ {[%emt 0:00:06]} axb5+ {[%emt 0:00:08]} 36. Nxb5 {[%emt 0:00:07]} Ng6 {[%emt 0:00:27]} 37. Nd4+ {[%emt 0:00:44]} Kb7 {[%emt 0:00:13]} 38. Nf3 {[%emt 0:00:55]} Ka6 {[%emt 0:00:23]} (38... Ne7 $142 39. Ng5 Nc6 40. Nxf7 Nxa5+ 41. Kb5 Nc6 42. Nd6+ Kc7 43. Ne8+ Kd7) 39. g3 {[%emt 0:00:37]} Kxa5 {[%emt 0:02:20] [#]} 40. Kc5 $1 {[%emt 0:00:17] And now Kd6 would win.} Ka4 {[%emt 0:00:14]} 41. Kd6 {[%emt 0:30:13]} Kb4 {[%emt 0:30:19]} 42. Ng5 {[%emt 0:00:11]} f6 {[%emt 0:03:06]} 43. exf6 {[%emt 0:02:06] White mates.} gxf6 {[%emt 0:00:07]} 44. Nxe6 {[%emt 0:00:01]} Ne5 {[%emt 0:00:13]} 45. Ng7 {[%emt 0:00:51]} Kc4 {[%emt 0:04:27]} 46. Nxh5 {[%emt 0:01:30]} Ng4 {[%emt 0:00:21]} 47. f3 {[%emt 0:01:09]} Nh6 {[%emt 0:00:46]} 48. Ke6 {[%emt 0:00:18]} Kd4 {[%emt 0:00:21]} 49. Kxf6 {[%emt 0:00:19]} Ke3 {[%emt 0:00:11]} 50. Kg6 {[%emt 0:00:51]} Ng8 {[%emt 0:00:13]} 51. f4 {[%emt 0:00:21]} Ne7+ {[%emt 0:00:15]} 52. Kg5 {[%emt 0:00:27]} Ke4 {[%emt 0:00:34]} 53. Nf6+ {[%emt 0:00:17]} Kd4 {[%emt 0:01:06]} 54. h5 {[%emt 0:00:14] Weighted Error Value: White=0.13 (very precise) /Black=0.43} 1-0

[Event "FIDE WY-U16 Olympiad 2022"]
[Site "Nakhchivan"]
[Date "2022.10.02"]
[Round "1.15"]
[White "Zhao, Jeffrey Renfei"]
[Black "Suleymanli, Suleyman"]
[Result "1/2-1/2"]
[ECO "C11"]
[WhiteElo "1807"]
[BlackElo "2304"]
[Annotator "TA"]
[PlyCount "124"]
[EventDate "2022.10.02"]
[EventType "team-tourn"]
[EventCountry "AZE"]
[SourceTitle "playchess.com"]
[Source "ChessBase"]
[SourceQuality "1"]
[WhiteTeam "Canada"]
[BlackTeam "Azerbaijan"]
[WhiteTeamCountry "CAN"]
[BlackTeamCountry "AZE"]
[TimeControl "40/5400+30:1800+30"]

{[%evp 20,124,12,9,20,4,0,0,38,28,94,79,83,94,97,93,118,129,191,172,292,243,279,291,280,282,247,59,59,59,59,60,59,60,60,70,64,63,76,73,111,96,99,36,73,8,50,10,90,92,92,92,93,81,106,95,310,303,294,302,309,266,345,247,223,211,180,193,215,187,178,193,287,280,1150,651,928,410,29951,29945,10315,29950,12792,4134,5754,4648,1620,8,8,8,8,7,8,8,22,8,8,8,8,0,0,0,0,0,0,0,0]} 1. e4 {[%emt 0:00:01]} e6 {[%emt 0:00:26]} 2. d4 {[%emt 0:00:05]} d5 {[%emt 0:00:05]} 3. Nc3 {[%emt 0:00:05]} Nf6 {[%emt 0:00:12]} 4. e5 {[%emt 0:00:06]} Nfd7 {[%emt 0:00:06]} 5. f4 {[%emt 0:00:03]} c5 {[%emt 0:00:20]} 6. Nf3 {[%emt 0:00:07]} Nc6 {[%emt 0:00:27]} 7. Be3 {[%emt 0:00:07]} cxd4 {[%emt 0:00:27]} 8. Nxd4 {[%emt 0:00:07]} Bc5 {[%emt 0:00:13]} 9. Qd2 {[%emt 0:00:12]} a6 {[%emt 0:01:03]} 10. O-O-O {[%emt 0:00:20]} Nxd4 {[%emt 0:03:14]} 11. Bxd4 {[%emt 0:00:07][%cal Oc3e4]} Qc7 {[%emt 0:01:06] C11: French: Classical System: 4 e5 and 4 Bg5 dxe4.} 12. Qf2 {[%emt 0:01:35]} b5 {[%emt 0:04:01]} 13. Bd3 {[%emt 0:02:34]} Bb7 {[%emt 0:10:51] [#]} 14. Kb1 $146 {[%emt 0:08:32]} ({Predecessor:} 14. Rhe1 Bxd4 15. Qxd4 Qa5 16. Kb1 b4 17. Ne2 Nc5 18. f5 exf5 19. Bxf5 O-O 20. Qh4 {1-0 (42) Lyell,M (2220)-Rudakov,A (2209) Budapest 2013}) 14... b4 {[%emt 0:05:39]} (14... Bxd4 $11 {keeps the balance.} 15. Qxd4 O-O) 15. Ne2 $16 {[%emt 0:39:27]} Bxd4 {[%emt 0:11:14]} 16. Nxd4 {[%emt 0:02:27]} ({Don't play} 16. Qxd4 a5 $11) 16... g6 {[%emt 0:22:57] Prevents f5.} 17. h4 {[%emt 0:08:25][%cal Bh2h4,Bh4h5][%mdl 32]} Qb6 {[%emt 0:01:35]} 18. h5 {[%emt 0:12:10] White is more active.} Rg8 {[%emt 0:12:48]} (18... O-O-O $16) 19. Rc1 $18 {[%emt 0:09:00]} Qa7 {[%emt 0:17:00]} (19... Rc8 {was necessary.} 20. hxg6 hxg6) 20. g4 {[%emt 0:10:00]} Qb6 {[%emt 0:03:40]} 21. hxg6 {[%emt 0:04:06]} hxg6 {[%emt 0:00:04]} 22. Rh7 {[%emt 0:00:55]} Nf8 {[%emt 0:02:22]} 23. Rxf7 {[%emt 0:00:31]} Kxf7 $14 {[%emt 0:00:48]} 24. f5 $1 {[%emt 0:00:03]} gxf5 {[%emt 0:01:05]} 25. gxf5 {[%emt 0:00:03]} Ke8 $1 {[%emt 0:00:31] And now ...exf5 would win.} 26. fxe6 {[%emt 0:00:16]} Nxe6 {[%emt 0:00:39]} 27. Qf6 {[%emt 0:00:42] Really sharp!} Rf8 {[%emt 0:00:34]} 28. Qxe6+ {[%emt 0:00:19]} Qxe6 {[%emt 0:00:19]} 29. Nxe6 {[%emt 0:00:01]} Ke7 {[%emt 0:00:34]} 30. Nxf8 {[%emt 0:00:09]} Rxf8 $16 {[%emt 0:00:05][%mdl 4096] Endgame KRB-KRB} 31. Re1 {[%emt 0:01:14]} ({Better is} 31. Rg1 $16) 31... Bc8 {[%emt 0:00:42]} 32. Kc1 {[%emt 0:00:40]} (32. Rh1 $16) 32... a5 {[%emt 0:00:42]} 33. Kd2 {[%emt 0:00:17]} Rf3 {[%emt 0:00:33]} (33... Ke6 $11) 34. Rg1 {[%emt 0:01:43]} Rh3 {[%emt 0:00:36]} 35. Rg8 {[%emt 0:00:45]} Bd7 {[%emt 0:00:24]} 36. Ra8 {[%emt 0:00:34]} a4 {[%emt 0:00:28]} 37. Rb8 $1 {[%emt 0:00:21]} b3 $2 {[%emt 0:00:36]} (37... Ke6 $16) 38. axb3 $18 {[%emt 0:00:14]} axb3 {[%emt 0:00:04]} 39. Rxb3 {[%emt 0:00:19]} Rh5 {[%emt 0:00:50]} 40. Ke3 {[%emt 0:01:01] Kd4 is the strong threat.} Ke6 {[%emt 0:00:35]} 41. Rb7 {[%emt 0:30:39]} Rh4 {[%emt 0:30:34]} 42. c3 {[%emt 0:00:37]} Bc8 {[%emt 0:00:29]} 43. Rc7 {[%emt 0:00:00]} Bd7 {[%emt 0:00:00] [#]} 44. b4 $1 {[%emt 0:00:00][%cal Bb2b4,Bb4b5,Bb5b6][%mdl 32]} Ba4 {[%emt 0:00:00]} 45. Ra7 {[%emt 0:00:00]} Bb3 {[%emt 0:00:00] [#]} (45... Bd1 {was worth a try.} 46. b5 Kxe5) 46. b5 $1 {[%emt 0:00:00]} Bc4 $2 {[%emt 0:00:00]} (46... Kxe5 47. b6 Rh3+ 48. Kd2 Rh2+ 49. Kc1 Rh8) 47. Bxc4 {[%emt 0:02:13] Strongly threatening Be2.} Rxc4 {[%emt 0:00:00] KR-KR} 48. Ra3 {[%emt 0:00:30]} (48. Kd3 $142 {aiming for b6.} Kxe5 49. Rg7) 48... Rc7 {[%emt 0:00:00]} (48... Re4+ $18 49. Kd3 Rxe5) 49. Rb3 {[%emt 0:00:38]} Kxe5 {[%emt 0:00:00]} 50. b6 {[%emt 0:00:21]} Rb7 {[%emt 0:00:00]} 51. Rb5 {[%emt 0:00:34]} Kd6 {[%emt 0:00:00]} 52. Kd4 {[%emt 0:00:19]} Kc6 {[%emt 0:00:00]} 53. Rxd5 $2 {[%emt 0:00:44]} (53. Rb1 $18 Kd6 54. Rh1) 53... Rxb6 $11 {[%emt 0:00:00] The position is equal.} 54. Rh5 {[%emt 0:00:14] Threatening mate with Rh6+.} Rb1 {[%emt 0:00:00]} 55. Rh6+ {[%emt 0:00:35]} Kc7 {[%emt 0:00:00]} 56. Kc5 {[%emt 0:00:10]} Rg1 {[%emt 0:00:00]} 57. c4 {[%emt 0:00:26]} Rg5+ {[%emt 0:00:00]} 58. Kb4 {[%emt 0:00:05]} Kb7 {[%emt 0:00:00]} 59. c5 {[%emt 0:00:08]} Rg1 {[%emt 0:00:00]} 60. Kb5 {[%emt 0:00:40]} Rb1+ {[%emt 0:00:00]} 61. Kc4 {[%emt 0:01:14]} Kc7 {[%emt 0:00:00]} 62. Kd5 {[%emt 0:00:41]} Rd1+ {[%emt 0:00:00] Black defended with fortune.  Weighted Error Value: White=0.38/Black=0.41} 1/2-1/2